Cogmind - Beta 9.4 *** ADVENTURER MODE // 2020.06.15 @ 20:48:09 Player: Scyralis Result: Self-destructed Performance ------------- Evolutions (2) 1000 Regions Visited (4) 800 Robots Destroyed (48) 240 Value Destroyed (808) 808 Prototype IDs (5) 100 Alien Tech Used (0) 0 Bonus (-123) -123 TOTAL SCORE: 2825 Bonus ------- Friendly Fire -123 Cogmind --------- Core Integrity 115/550 Matter 316/450 Energy 100/100 System Corruption 3% Temperature Cool (9) Movement Core (750) Ox14 Location -8/Materials Parts ------- > --- POWER (1) -------- (None) > --- PROPULSION (2) --- (None) > --- UTILITY (6) ------ High-capacity Storage Unit Large Matter Pod Advanced Signal Interpreter Transport Network Coupler Field Recycling Unit > --- WEAPON (2) ------- (None) > --- INVENTORY (12) --- Dynamic Insulation System Peak State ------------ > --- POWER ------------ Light Nuclear Core > --- PROPULSION ------- Light Treads Armored Treads > --- UTILITY ---------- High-capacity Storage Unit Compact Battery Advanced Sensor Array Advanced Signal Interpreter Reflective Plating Field Recycling Unit > --- WEAPON ----------- Light EM Pulse Cannon Advanced EMP Blaster > --- INVENTORY -------- (None) [Rating: 28] Favorites ----------- Power Light Nuclear Core Engine Improved Ion Engine Power Core Light Nuclear Core Propulsion Light Treads Treads Light Treads Utility High-capacity Storage Unit Device Advanced Sensor Array Storage High-capacity Storage Unit Processor Advanced Signal Interpreter Hackware Hacking Suite Protection Light Armor Plating Weapon Light Assault Rifle Energy Gun Small Laser Energy Cannon Light EM Pulse Cannon Ballistic Gun Light Assault Rifle Ballistic Cannon Flak Cannon Launcher Advanced EMP Blaster Special Weapon Plasma Cutter Impact Weapon Heavy Flail Build | -11 -10 -10 -9 -8 ------- Run | Scr Mat Min Mat Mat Slots Evolved 4 | . . . 2 2 Power . | . . . . . Propulsion . | . . . . . Utility 4 | . . . 2 2 Weapon . | . . . . . Parts Attached 42 | 9 1 2 17 13 Power 5 | 1 . 1 2 1 Engine 2 | 1 . . 1 . Core 3 | . . 1 1 1 Reactor . | . . . . . Propulsion 6 | 2 . . 2 2 Treads 6 | 2 . . 2 2 Leg . | . . . . . Wheel . | . . . . . Hover . | . . . . . Flight . | . . . . . Utility 15 | 2 1 . 6 6 Device 3 | . . . 1 2 Storage 4 | 1 1 . . 2 Processor 3 | 1 . . 1 1 Hackware 1 | . . . 1 . Protection 4 | . . . 3 1 Artifact . | . . . . . Weapon 16 | 4 . 1 7 4 Energy Gun 2 | 1 . . 1 . Energy Cannon 2 | . . . 1 1 Ballistic Gun 6 | 3 . . 3 . Ballistic Cannon 1 | . . . . 1 Launcher 3 | . . 1 1 1 Special Weapon 1 | . . . . 1 Impact Weapon 1 | . . . 1 . Slashing Weapon . | . . . . . Piercing Weapon . | . . . . . Special Melee Weapon . | . . . . . Unidentified Prototypes 1 | . . . . 1 Parts Lost 16 | . . . 6 10 Power 2 | . . . 1 1 Propulsion 4 | . . . 2 2 Utility 7 | . . . 2 5 Weapon 3 | . . . 1 2 Highest Loss Streak 5 | . . . 4 5 Average Slot Usage (%) 91 | . 100 100 92 89 Engine 3 | . 14 9 2 3 Core 4 | . . 4 6 4 Treads 17 | . 28 28 20 13 Device 13 | . . . 11 17 Storage 16 | . 18 28 13 18 Processor 8 | . 9 . 8 9 Protection 5 | . . . 6 6 Energy Cannon 6 | . . . 1 10 Ballistic Gun 5 | . 28 22 8 . Launcher 3 | . . 5 2 3 Impact Weapon 3 | . . . 9 . Naked Turns . | . . . . . Heaviest Build 62 | 11 43 48 51 62 Greatest Support 40 | 40 40 40 40 40 Greatest Overweight (x) 14 | . 1 1 11 14 Average Overweight (x) 1 | . . 1 . 1 Largest Inventory Capacity 14 | 6 14 14 14 12 Average Capacity 11 | 5 8 14 12 12 Most Carried 6 | 4 3 6 5 4 Average Carried 1 | . 1 3 2 1 Final Capacity 14 | 6 14 14 12 12 Final Carried 6 | 1 2 6 2 1 Class Distribution -------------------- 75% | Mutant 15% | Scavenger-Mutant 8% | Hacker-Mutant Dominant Class ---------------- Mutant | -10/Materials Mutant | -10/Mines Mutant | -9/Materials Mutant | -8/Materials Resources | -11 -10 -10 -9 -8 ----------- Run | Scr Mat Min Mat Mat Matter Collected 777 | 307 22 . 279 169 Remotely . | . . . . . Salvage Created 1403 | 145 45 . 328 885 Parts 89 | 7 3 . 17 62 Haulers Intercepted 1 | . . . . 1 Recyclers Shooed 3 | 2 . . . 1 Parts Field Recycled 13 | . . . . 13 Retrieved Matter 73 | . . . . 73 Parts Self-Destructed . | . . . . . Prevented . | . . . . . Kills | -11 -10 -10 -9 -8 ------- Run | Scr Mat Min Mat Mat Combat Hostiles Destroyed 22 | . 1 . 5 16 Melee 2 | . . . 1 1 Guns 2 | . 1 . 1 . Cannons 10 | . . . . 10 AOE 8 | . . . 3 5 Classes Destroyed 10 | 3 1 . 2 4 Worker 7 | 1 . . 3 3 Builder 8 | . . . . 8 Tunneler 3 | 2 . . 1 . Hauler 1 | . . . . 1 Recycler 4 | 1 . . 1 2 Operator 1 | . . . . 1 Watcher 1 | . . . . 1 Swarmer 13 | . . . 2 11 Grunt 7 | . 1 . 1 5 Sentry 2 | . . . 2 . Thug 1 | . . . 1 . Best Kill Streak 8 | 2 1 . 4 8 Combat Bots Only 4 | . 1 . 3 4 Max Kills in Single Turn 2 | 1 1 . 2 2 Gunslinging . | . . . . . Exploded 2 | . . . 1 2 Melee 1 | . . . 1 1 Uniques/NPCs Destroyed . | . . . . . Combat | -11 -10 -10 -9 -8 -------- Run | Scr Mat Min Mat Mat Damage Taken 2666 | . 59 21 1100 1486 Core 740 | . 8 7 290 435 Absorbed by Shields 3 | . . . . 3 Core Remaining (%) 73 | 100 . 94 27 . Volleys Fired 102 | 13 6 . 21 62 Largest 2 | 2 2 . 2 2 Hottest 131 | 60 40 . 66 131 Shots Fired 182 | 26 12 . 28 116 Gun 54 | 26 12 . 16 . Cannon 95 | . . . 3 92 Launcher 31 | . . . 9 22 Special 2 | . . . . 2 Kinetic 45 | 17 12 . 8 8 Thermal 35 | 9 . . . 26 Explosive 9 | . . . 9 . Electromagnetic 93 | . . . 11 82 Robot Hit Streak 19 | 12 6 . 12 19 Robot Miss Streak 5 | 1 1 . 1 5 Penetration Max . | . . . . . Secondary Targets . | . . . . . Shots Hit Robots 130 | 20 9 . 32 69 Core Hits 66 | 7 3 . 16 40 Critical Hits 2 | . . . . 2 Critical Kills 1 | . . . . 1 Critical Parts Destroyed 1 | . . . . 1 Melee Attacks 24 | . . . 24 . Impact 24 | . . . 24 . Slashing . | . . . . . Piercing . | . . . . . Sneak Attacks 2 | . . . 2 . Combat Hostiles . | . . . . . Follow-up Attacks . | . . . . . Damage Inflicted 3430 | 179 44 . 905 2302 Guns 337 | 179 44 . 114 . Cannons 1420 | . . . 60 1360 Explosions 1122 | . . . 202 920 Melee 529 | . . . 529 . Ramming 22 | . . . . 22 Kinetic 195 | 91 44 . 6 54 Thermal 740 | 88 . . . 652 Explosive 202 | . . . 202 . Electromagnetic 1742 | . . . 168 1574 Impact 529 | . . . 529 . Slashing . | . . . . . Piercing . | . . . . . Highest Corruption 3 | . . . 1 3 Average Corruption 1 | . . . 1 1 Corruption Purged . | . . . . . Effects 22 | . . . 3 19 Message Errors 8 | . . . 2 6 Matter Fused 2 | . . . . 2 Heat Flow Errors 1 | . . . . 1 Energy Discharges 1 | . . . . 1 Data Loss (minor) 3 | . . . 1 2 Targeting Errors 5 | . . . . 5 Weapon Failures 2 | . . . . 2 Overload Shots . | . . . . . Overflow Damage 250 | . . . 122 128 Projectiles 53 | . . . . 53 Explosions 75 | . . . . 75 Melee 122 | . . . 122 . Knockbacks 3 | . . . 1 2 Impact 1 | . . . 1 . Kinetic 2 | . . . . 2 Secondary . | . . . . . Self-Inflicted Damage 174 | . . . 24 150 Shots 10 | . . . 1 9 Rammed 10 | . . . . 10 Targets Rammed 10 | . . . . 10 Kicked . | . . . . . Crushed . | . . . . . Highest Temperature 405 | 40 12 . 36 405 Average Temperature 111 | 19 8 . 9 127 Received Heat Transfer 873 | . 42 . 420 411 Effects 2 | . . . . 2 Shutdowns 1 | . . . . 1 Energy Bleed 1 | . . . . 1 Siege Activations . | . . . . . Robots Corrupted . | . . . . . Combat Hostiles . | . . . . . Parts Fried 10 | . . . 3 7 Impact Corruptions 5 | . . . 5 . Robots Melted . | . . . . . Combat Hostiles . | . . . . . Parts Melted 1 | . . . . 1 Heat Transferred 1018 | 200 . . . 818 Parts Sabotaged . | . . . . . Parts Stolen . | . . . . . Parts Stripped . | . . . . . Power Chain Reactions 9 | . . . . 9 Missiles Intercepted . | . . . . . Alert | -11 -10 -10 -9 -8 ------- Run | Scr Mat Min Mat Mat Peak Influence 277 | 20 39 12 175 277 Average Influence 82 | 6 19 12 54 126 Maximum Alert Level 1 | . . . . 1 Low Security (%) 91 | 100 100 100 100 83 Level 1 8 | . . . . 16 Level 2 . | . . . . . Level 3 . | . . . . . Level 4 . | . . . . . Level 5 . | . . . . . High Security . | . . . . . Max Security . | . . . . . Squads Dispatched 4 | . 1 . . 3 Investigation 2 | . 1 . . 1 Extermination . | . . . . . Reinforcement 2 | . . . . 2 Assault . | . . . . . Garrison . | . . . . . Intercept . | . . . . . Construction Impeded 1 | . . . . 1 Haulers Reinforced . | . . . . . Stealth | -11 -10 -10 -9 -8 --------- Run | Scr Mat Min Mat Mat Distress Signals 3 | . . . 1 2 Communications Jammed . | . . . . . Distress Signals . | . . . . . Times Spotted 44 | . 1 . 17 26 Peak Tracking Total 8 | . 2 . 8 4 Tactical Retreats 5 | . . . 1 4 Traps | -11 -10 -10 -9 -8 ------- Run | Scr Mat Min Mat Mat Traps Triggered 1 | . . 1 . . Indirectly . | . . . . . Trap Hack Attempts . | . . . . . Triggered . | . . . . . Disarmed . | . . . . . Reprogrammed . | . . . . . Reused . | . . . . . Traps Extracted . | . . . . . Installed . | . . . . . Triggered . | . . . . . Machines | -11 -10 -10 -9 -8 ---------- Run | Scr Mat Min Mat Mat Machines Disabled 15 | . . . 5 10 Max in Single Turn 2 | . . . 2 1 Machines Sabotaged . | . . . . . Garrisons Compromised . | . . . . . Overloaded Fab Kills . | . . . . . Fab Network Shutdowns . | . . . . . Hacking | -11 -10 -10 -9 -8 --------- Run | Scr Mat Min Mat Mat Machines Accessed 9 | . 1 1 5 2 Terminals 6 | . 1 . 3 2 Fabricators . | . . . . . Repair Stations . | . . . . . Recycling Units 1 | . . . 1 . Scanalyzers 1 | . . . 1 . Garrison Access . | . . . . . Total Hacks 39 | . 5 1 25 8 Successful 35 | . 5 1 22 7 Failed 4 | . . . 3 1 Catastrophic . | . . . . . Database Lockouts . | . . . . . Manual . | . . . . . Terminals 29 | . 5 . 16 8 Fabricators . | . . . . . Repair Stations . | . . . . . Recycling Units 5 | . . . 5 . Scanalyzers 4 | . . . 4 . Garrison Access . | . . . . . Terminal Hacks 26 | . 5 1 13 7 Record 13 | . 2 . 8 3 Prototype ID Bank 2 | . 1 . . 1 Open Door 1 | . . 1 . . Emergency Access Points 1 | . . . . 1 Scanalyzer Index 1 | . . . 1 . Dispatch Records 1 | . . . 1 . Recall Reinforcements 1 | . . . 1 . Recall Assault 2 | . . . 1 1 Hauler Manifests 1 | . 1 . . . Registered Components 1 | . . . 1 . Zone Layout 2 | . 1 . . 1 Fabricator Hacks . | . . . . . Repair Station Hacks . | . . . . . Recycling Unit Hacks 5 | . . . 5 . Recycle Component 3 | . . . 3 . Process 1 | . . . 1 . Retrieve Components 1 | . . . 1 . Scanalyzer 4 | . . . 4 . Insert Component 2 | . . . 2 . Analyze 2 | . . . 2 . Garrison Access Hacks . | . . . . . Unauthorized Hacks . | . . . . . Terminals . | . . . . . Fabricators . | . . . . . Repair Stations . | . . . . . Recycling Units . | . . . . . Scanalyzers . | . . . . . Garrison Access . | . . . . . Data Cores Recovered . | . . . . . Used . | . . . . . Hacking Detections 7 | . . . 5 2 Full Trace Events 5 | . . . 3 2 Feedback Events 2 | . . . 1 1 Corruption 2 | . . . 1 1 Feedback Blocked . | . . . . . Robot Schematics Acquired . | . . . . . Robots Built . | . . . . . Matter . | . . . . . Time . | . . . . . Total Robot Build Rating . | . . . . . Part Schematics Acquired 1 | . . . 1 . Parts Built . | . . . . . Matter . | . . . . . Time . | . . . . . Total Part Build Rating . | . . . . . Parts Repaired . | . . . . . Time . | . . . . . Parts Recycled 3 | . . . 3 . Recycled Matter 89 | . . . 89 . Retrieved Matter . | . . . . . Retrieved Components . | . . . . . Parts Scanalyzed 2 | . . . 2 . Part Schematics Acquired 1 | . . . 1 . Parts Damaged . | . . . . . Bothacking | -11 -10 -10 -9 -8 ------------ Run | Scr Mat Min Mat Mat Used RIF Installer . | . . . . . Robots Hacked . | . . . . . Non-combat . | . . . . . Combat . | . . . . . Robot Hacks Applied . | . . . . . Relay Couplers Released . | . . . . . Robots Rewired . | . . . . . Allies Hacked . | . . . . . Hacks Repelled . | . . . . . Allies | -11 -10 -10 -9 -8 -------- Run | Scr Mat Min Mat Mat Total Allies . | . . . . . Largest Group . | . . . . . Highest-Rated Group . | . . . . . Highest-Rated Ally . | . . . . . Total Orders . | . . . . . Ally Attacks . | . . . . . Total Damage . | . . . . . Kills . | . . . . . Allies Corrupted . | . . . . . Allies Melted . | . . . . . Intel | -11 -10 -10 -9 -8 ------- Run | Scr Mat Min Mat Mat Robot Analysis Total . | . . . . . Derelict Logs Recovered . | . . . . . Drone Launches . | . . . . . Drone Recoveries . | . . . . . Exploration | -11 -10 -10 -9 -8 ------------- Run | Scr Mat Min Mat Mat Turns Passed 2457 | 169 108 122 859 1199 Spaces Moved 912 | 69 55 64 387 337 Core 22 | 17 . . 2 3 Treads 890 | 52 55 64 385 334 Legs . | . . . . . Wheels . | . . . . . Hover . | . . . . . Flight . | . . . . . Fastest Speed 50 | 50 160 180 160 180 Average Speed 183 | 132 164 180 178 204 Slowest Speed 750 | 160 180 180 600 750 Overloaded Moves . | . . . . . Propulsion Burnouts . | . . . . . Robots Hopped . | . . . . . Cave-ins Triggered . | . . . . . Exploration Rate (%) 15 | 5 11 13 20 27 Regions Visited 4 Branch Regions 1 Pre-discovered Areas . | . . . . . Known Exits Taken 1 | . . . 1 . Unknown Exits Taken 3 | 1 1 1 . . Scrap Searched . | . . . . . Spaces Dug 31 | . . . 29 2 Terrain Destroyed 184 | . . . 78 106 Melee 2 | . . . 2 . Projectile 8 | . . . . 8 AOE 174 | . . . 76 98 Actions | -11 -10 -10 -9 -8 --------- Run | Scr Mat Min Mat Mat Total 1436 | 124 64 71 482 695 Wait 290 | 22 . . 14 254 Move 908 | 68 54 63 386 337 Hop . | . . . . . Pick Up 42 | 10 2 5 13 12 Fast Attach . | . . . . . Attach 27 | 8 1 . 12 6 Detach 1 | . . . 1 . Swap 15 | 1 . 2 5 7 Drop 17 | 2 1 1 6 7 Fire 102 | 13 6 . 21 62 Melee 24 | . . . 24 . Ram 4 | . . . . 4 Kick . | . . . . . Crush 6 | . . . . 6 Escape Stasis . | . . . . . Rewire . | . . . . . Trap . | . . . . . Miscellaneous . | . . . . . Route ------- -11/Scrapyard -10/Materials -10/Mines -9/Materials -8/Materials History --------- Turn | Location | Event 18 | -11/Scrapyard | Discovered new exit (range 16) 170 | -11/Scrapyard | Entered Materials 210 | -10/Materials | Discovered new exit (range 8) 278 | -10/Materials | Entered Mines 302 | -10/Mines | Build established: Mutant 323 | -10/Mines | Discovered new exit (range 10) 342 | -10/Mines | Met a Derelict who couldn't figure out how to use a Trap Extractor 400 | -10/Mines | Entered Materials 400 | -9/Materials | Evolved 2 slots: Utility x2 1053 | -9/Materials | Core integrity fell below 50% 1080 | -9/Materials | Lost 4 parts (2n1u1w) 1237 | -9/Materials | Discovered new exit (range 8) 1257 | -9/Materials | Identified exit to Materials 1259 | -9/Materials | Entered another Materials area 1259 | -8/Materials | Evolved 2 slots: Utility x2 1363 | -8/Materials | Build established: Scavenger-Mutant 1744 | -8/Materials | Build established: Mutant 2349 | -8/Materials | Lost 3 parts (1p1u1w) 2415 | -8/Materials | Core integrity fell below 50% 2440 | -8/Materials | Lost 5 parts (1n3u1w) 2458 | -8/Materials | Self-destructed Last Messages --------------- 02397_ Slammed into S-10 Pest. 02402_ K-01 Serf collects debris. 02404_ Slammed into S-10 Pest. 02405_ Arm. Treads destroyed. 02406_ Slammed into S-10 Pest. 02406_ Destabilizing: Short circuit. 02406_ Broken Field Recycling Unit permanently disabled. 02406_ K-01 Serf collects debris. 02409_ K-01 Serf cleans the Processing Tank. 02409_ Com. Battery destroyed. 02413_ K-01 Serf collects debris. 02413_ Slammed into S-10 Pest. 02417_ K-01 Serf collects debris. 02421_ Slammed into S-10 Pest. 02428_ S-10 Pest destroyed. [Achievement: Fist Fight] 02428_ Destabilizing: Core damaged (-5). 02429_ Acquired 20 matter. 02431_ K-01 Serf cleans the Processing Tank. 02445_ OM/U,,XF2Z#JG/4 XFKYHJ ZEKXD60>OQL